[Event "Open NK Rapid 2025 bord 26-50"]
[Site "Helmond, Netherlands"]
[Date "2025.05.03"]
[Round "2.24"]
[White "Kurt, Sascha"]
[Black "Ganeshram, Nirupa"]
[Result "1-0"]
[TimeControl "15 min +5 sec increment"]
[WhiteFideId "1082647"]
[BlackFideId "1083031"]
[WhiteElo "1953"]
[BlackElo "1679"]

1. e4 {[%clk 00:15:07]} {[%emt 00:00:02]} c5 {[%clk 00:15:09]} {[%emt
00:00:02]} 2. Nf3 {[%clk 00:15:11]} d6 {[%clk 00:15:13]} {[%emt 00:00:02]} 3.
d4 {[%clk 00:15:15]} {[%emt 00:00:01]} cxd4 {[%clk 00:15:16]} {[%emt 00:00:01]}
4. Nxd4 {[%clk 00:15:19]} {[%emt 00:00:01]} Nf6 {[%clk 00:15:20]} 5. Nc3 {[%clk
00:15:23]} {[%emt 00:00:01]} g6 {[%clk 00:15:24]} {[%emt 00:00:01]} 6. Be3
{[%clk 00:15:27]} {[%emt 00:00:01]} Bg7 {[%clk 00:15:28]} {[%emt 00:00:01]} 7.
f3 {[%clk 00:15:31]} {[%emt 00:00:01]} O-O {[%clk 00:15:32]} {[%emt 00:00:02]}
8. Qd2 {[%clk 00:15:35]} Nc6 {[%clk 00:15:35]} {[%emt 00:00:02]} 9. O-O-O
{[%clk 00:15:38]} {[%emt 00:00:01]} d5 {[%clk 00:15:39]} {[%emt 00:00:02]} 10.
Nxc6 {[%clk 00:15:41]} {[%emt 00:00:01]} bxc6 {[%clk 00:15:42]} {[%emt
00:00:02]} 11. Bc4 {[%clk 00:15:45]} {[%emt 00:00:01]} Qa5 {[%clk 00:13:51]}
{[%emt 00:01:56]} 12. Nxd5 {[%clk 00:15:14]} {[%emt 00:00:35]} Qxd2+ {[%clk
00:13:42]} {[%emt 00:00:15]} 13. Rxd2 {[%clk 00:15:18]} {[%emt 00:00:01]} cxd5
{[%clk 00:13:39]} {[%emt 00:00:08]} 14. exd5 {[%clk 00:15:22]} {[%emt
00:00:02]} Rd8 {[%clk 00:12:23]} {[%emt 00:01:21]} 15. Rhd1 {[%clk 00:15:26]}
Ne8 {[%clk 00:11:40]} {[%emt 00:00:48]} 16. Bb3 {[%clk 00:15:15]} {[%emt
00:00:15]} Nd6 {[%clk 00:11:37]} {[%emt 00:00:09]} 17. c4 {[%clk 00:15:16]}
{[%emt 00:00:04]} Nf5 {[%clk 00:10:40]} {[%emt 00:01:01]} 18. Bf4 {[%clk
00:15:18]} {[%emt 00:00:04]} Bh6 {[%clk 00:09:52]} {[%emt 00:00:52]} 19. Bxh6
{[%clk 00:15:21]} {[%emt 00:00:02]} Nxh6 {[%clk 00:09:56]} {[%emt 00:00:01]} 20.
c5 {[%clk 00:15:07]} {[%emt 00:00:19]} Nf5 {[%clk 00:09:28]} {[%emt 00:00:33]}
21. g4 {[%clk 00:15:04]} {[%emt 00:00:09]} Ng7 {[%clk 00:09:19]} {[%emt
00:00:14]} 22. c6 {[%clk 00:14:16]} {[%emt 00:00:52]} Rd6 {[%clk 00:08:40]}
{[%emt 00:00:44]} 23. Bc4 {[%clk 00:14:02]} {[%emt 00:00:20]} a5 {[%clk
00:08:35]} {[%emt 00:00:10]} 24. a3 {[%clk 00:13:50]} {[%emt 00:00:17]} Ba6
{[%clk 00:08:21]} {[%emt 00:00:19]} 25. Bxa6 {[%clk 00:13:51]} {[%emt
00:00:04]} Rxa6 {[%clk 00:08:24]} {[%emt 00:00:02]} 26. b4 {[%clk 00:13:52]}
{[%emt 00:00:03]} axb4 {[%clk 00:07:49]} {[%emt 00:00:40]} 27. axb4 {[%clk
00:13:56]} Ne8 {[%clk 00:07:41]} {[%emt 00:00:13]} 28. Kb2 {[%clk 00:13:56]}
{[%emt 00:00:05]} Nc7 {[%clk 00:07:31]} {[%emt 00:00:15]} 29. Kb3 {[%clk
00:13:53]} {[%emt 00:00:08]} Kg7 {[%clk 00:05:28]} {[%emt 00:02:08]} 30. Kc4
{[%clk 00:13:53]} {[%emt 00:00:05]} Ra4 {[%clk 00:04:54]} {[%emt 00:00:40]} 31.
Kb3 {[%clk 00:13:22]} {[%emt 00:00:36]} Ra6 {[%clk 00:04:45]} {[%emt 00:00:14]}
32. Kc4 {[%clk 00:13:08]} {[%emt 00:00:19]} Ra4 {[%clk 00:04:43]} {[%emt
00:00:07]} 33. Kc5 {[%clk 00:12:31]} {[%emt 00:00:42]} Kf6 {[%clk 00:01:24]}
{[%emt 00:03:23]} 34. b5 {[%clk 00:12:25]} {[%emt 00:00:11]} Ra5 {[%clk
00:00:19]} {[%emt 00:01:11]} 35. Rb2 {[%clk 00:11:41]} {[%emt 00:00:49]} Na6+
{[%clk 00:00:14]} {[%emt 00:00:10]} 36. Kb6 {[%clk 00:11:43]} {[%emt 00:00:03]}
Ra3 {[%clk 00:00:14]} {[%emt 00:00:05]} 37. bxa6 {[%clk 00:11:44]} {[%emt
00:00:03]} Rxf3 {[%clk 00:00:12]} {[%emt 00:00:07]} 38. a7 {[%clk 00:11:40]}
{[%emt 00:00:09]} Ra3 {[%clk 00:00:14]} {[%emt 00:00:03]} 39. Kb7 {[%clk
00:11:39]} {[%emt 00:00:07]} Rd8 {[%clk 00:00:14]} {[%emt 00:00:05]} 40. c7
{[%clk 00:11:05]} {[%emt 00:00:38]} Rd7 {[%clk 00:00:18]} {[%emt 00:00:02]} 41.
Rc1 {[%clk 00:10:58]} {[%emt 00:00:12]} Ra5 {[%clk 00:00:09]} {[%emt 00:00:14]}
42. a8=Q {[%clk 00:10:55]} {[%emt 00:00:08]} Rxa8 {[%clk 00:00:13]} 43. Kxa8
{[%clk 00:10:58]} {[%emt 00:00:03]} 1-0

[Event "Open NK Rapid 2025 bord 26-50"]
[Site "Helmond, Netherlands"]
[Date "2025.05.03"]
[Round "2.25"]
[White "Calvi, Elias Francesco"]
[Black "Oostvogels, Niek"]
[Result "1-0"]
[TimeControl "15 min +5 sec increment"]
[WhiteFideId "34625704"]
[BlackFideId "1051725"]
[WhiteElo "1699"]
[BlackElo "1949"]

1. d4 {[%clk 00:15:07]} {[%emt 00:00:01]} d5 {[%clk 00:15:06]} {[%emt
00:00:05]} 2. c4 {[%clk 00:15:11]} {[%emt 00:00:01]} e6 {[%clk 00:15:01]}
{[%emt 00:00:11]} 3. Nc3 {[%clk 00:15:13]} {[%emt 00:00:02]} Nf6 {[%clk
00:15:00]} {[%emt 00:00:05]} 4. cxd5 {[%clk 00:15:17]} {[%emt 00:00:02]} exd5
{[%clk 00:15:03]} {[%emt 00:00:03]} 5. Bg5 {[%clk 00:15:19]} {[%emt 00:00:02]}
Be7 {[%clk 00:14:40]} {[%emt 00:00:28]} 6. e3 {[%clk 00:15:22]} {[%emt
00:00:02]} Nbd7 {[%clk 00:14:30]} {[%emt 00:00:15]} 7. Bd3 {[%clk 00:15:08]}
{[%emt 00:00:18]} c6 {[%clk 00:14:31]} {[%emt 00:00:04]} 8. Nge2 {[%clk
00:15:09]} {[%emt 00:00:04]} Nf8 {[%clk 00:14:02]} {[%emt 00:00:35]} 9. O-O
{[%clk 00:15:03]} {[%emt 00:00:11]} Ne6 {[%clk 00:13:53]} {[%emt 00:00:14]} 10.
Bxf6 {[%clk 00:14:56]} {[%emt 00:00:11]} Bxf6 {[%clk 00:13:56]} {[%emt
00:00:03]} 11. Rc1 {[%clk 00:14:09]} {[%emt 00:00:52]} O-O {[%clk 00:13:42]}
{[%emt 00:00:19]} 12. Ng3 {[%clk 00:13:37]} {[%emt 00:00:37]} Re8 {[%clk
00:13:20]} {[%emt 00:00:27]} 13. b4 {[%clk 00:12:33]} {[%emt 00:01:09]} a6
{[%clk 00:12:46]} {[%emt 00:00:39]} 14. a4 {[%clk 00:12:11]} {[%emt 00:00:27]}
Be7 {[%clk 00:12:12]} {[%emt 00:00:39]} 15. b5 {[%clk 00:11:40]} {[%emt
00:00:36]} axb5 {[%clk 00:11:57]} {[%emt 00:00:21]} 16. axb5 {[%clk 00:11:43]}
{[%emt 00:00:02]} c5 {[%clk 00:10:57]} {[%emt 00:01:04]} 17. dxc5 {[%clk
00:11:40]} {[%emt 00:00:08]} Nxc5 {[%clk 00:10:36]} {[%emt 00:00:26]} 18. Nxd5
{[%clk 00:11:05]} {[%emt 00:00:39]} Nxd3 {[%clk 00:10:21]} {[%emt 00:00:21]} 19.
Qxd3 {[%clk 00:10:52]} {[%emt 00:00:18]} Bf8 {[%clk 00:09:50]} {[%emt
00:00:37]} 20. Rfd1 {[%clk 00:10:39]} {[%emt 00:00:16]} Be6 {[%clk 00:09:09]}
{[%emt 00:00:47]} 21. Nc7 {[%clk 00:10:34]} {[%emt 00:00:10]} Qxd3 {[%clk
00:09:01]} {[%emt 00:00:13]} 22. Rxd3 {[%clk 00:10:37]} {[%emt 00:00:02]} Rec8
{[%clk 00:09:00]} {[%emt 00:00:07]} 23. b6 {[%clk 00:10:18]} {[%emt 00:00:24]}
Ra2 {[%clk 00:07:25]} {[%emt 00:01:39]} 24. Rb1 {[%clk 00:08:35]} {[%emt
00:01:48]} Bc4 {[%clk 00:05:04]} {[%emt 00:02:26]} 25. Rc3 {[%clk 00:07:49]}
{[%emt 00:00:51]} Ba6 {[%clk 00:04:37]} {[%emt 00:00:32]} 26. Nd5 {[%clk
00:06:01]} {[%emt 00:01:52]} Rxc3 {[%clk 00:04:10]} {[%emt 00:00:34]} 27. Nxc3
{[%clk 00:06:03]} {[%emt 00:00:02]} Rc2 {[%clk 00:04:13]} {[%emt 00:00:01]} 28.
Nd5 {[%clk 00:05:30]} {[%emt 00:00:39]} Bc5 {[%clk 00:03:37]} {[%emt 00:00:42]}
29. h3 {[%clk 00:05:14]} {[%emt 00:00:20]} Bc4 {[%clk 00:03:06]} {[%emt
00:00:36]} 30. Nc7 {[%clk 00:04:14]} {[%emt 00:01:05]} Ba2 {[%clk 00:02:44]}
{[%emt 00:00:28]} 31. Rd1 {[%clk 00:02:59]} {[%emt 00:01:19]} g6 {[%clk
00:02:33]} {[%emt 00:00:16]} 32. Rd8+ {[%clk 00:02:38]} {[%emt 00:00:25]} Kg7
{[%clk 00:02:37]} {[%emt 00:00:02]} 33. Ne8+ {[%clk 00:02:25]} {[%emt
00:00:18]} Kh6 {[%clk 00:02:10]} {[%emt 00:00:33]} 34. Rc8 {[%clk 00:01:48]}
{[%emt 00:00:41]} Be6 {[%clk 00:00:57]} {[%emt 00:01:18]} 35. Rc7 {[%clk
00:01:37]} {[%emt 00:00:15]} Bd5 {[%clk 00:00:35]} {[%emt 00:00:28]} 36. Nd6
{[%clk 00:01:31]} {[%emt 00:00:10]} Rc1+ {[%clk 00:00:23]} {[%emt 00:00:18]} 37.
Kh2 {[%clk 00:01:31]} {[%emt 00:00:05]} Rc2 {[%clk 00:00:16]} {[%emt 00:00:12]}
38. Nxf7+ {[%clk 00:01:19]} {[%emt 00:00:18]} Bxf7 {[%clk 00:00:14]} {[%emt
00:00:10]} 39. Rxf7 {[%clk 00:01:17]} {[%emt 00:00:03]} Bxb6 {[%clk 00:00:17]}
{[%emt 00:00:02]} 40. Rxb7 {[%clk 00:01:05]} {[%emt 00:00:16]} Bc7 {[%clk
00:00:19]} {[%emt 00:00:04]} 41. f4 {[%clk 00:00:51]} {[%emt 00:00:19]} Bd6
{[%clk 00:00:20]} {[%emt 00:00:05]} 42. Rb3 {[%clk 00:00:39]} {[%emt 00:00:16]}
Bc5 {[%clk 00:00:12]} {[%emt 00:00:14]} 43. e4 {[%clk 00:00:36]} {[%emt
00:00:07]} Rf2 {[%clk 00:00:08]} {[%emt 00:00:09]} 44. Rf3 {[%clk 00:00:32]}
{[%emt 00:00:08]} Rc2 {[%clk 00:00:08]} {[%emt 00:00:06]} 45. e5 {[%clk
00:00:32]} {[%emt 00:00:05]} Kg7 {[%clk 00:00:12]} {[%emt 00:00:02]} 46. Ne4
{[%clk 00:00:31]} {[%emt 00:00:05]} Bd4 {[%clk 00:00:13]} {[%emt 00:00:05]} 47.
Nd6 {[%clk 00:00:28]} {[%emt 00:00:08]} Rc1 {[%clk 00:00:08]} {[%emt 00:00:10]}
48. g4 {[%clk 00:00:13]} {[%emt 00:00:20]} Rc2+ {[%clk 00:00:08]} {[%emt
00:00:05]} 49. Kg3 {[%clk 00:00:15]} {[%emt 00:00:02]} Bc5 {[%clk 00:00:00]}
{[%emt 00:00:09]} 50. Ne4 {[%clk 00:00:15]} {[%emt 00:00:02]} 1-0

[Event "Open NK Rapid 2025 bord 26-50"]
[Site "Helmond, Netherlands"]
[Date "2025.05.03"]
[Round "3.1"]
[White "Chua, Ethan"]
[Black "Calvi, Elias Francesco"]
[Result "1-0"]
[TimeControl "15 min +5 sec increment"]
[WhiteFideId "1089250"]
[BlackFideId "34625704"]
[WhiteElo "2069"]
[BlackElo "1699"]

1. e4 {[%clk 00:15:08]} {[%emt 00:00:02]} c5 {[%clk 00:15:09]} {[%emt
00:00:02]} 2. Nf3 {[%clk 00:15:11]} {[%emt 00:00:01]} e6 {[%clk 00:15:13]}
{[%emt 00:00:01]} 3. d4 {[%clk 00:15:16]} {[%emt 00:00:01]} cxd4 {[%clk
00:15:17]} {[%emt 00:00:01]} 4. Nxd4 {[%clk 00:15:19]} {[%emt 00:00:01]} a6
{[%clk 00:15:21]} {[%emt 00:00:01]} 5. Bd3 {[%clk 00:15:23]} {[%emt 00:00:02]}
Nf6 {[%clk 00:15:25]} {[%emt 00:00:01]} 6. O-O {[%clk 00:15:25]} {[%emt
00:00:03]} Bc5 {[%clk 00:15:28]} {[%emt 00:00:02]} 7. Nb3 {[%clk 00:15:25]}
{[%emt 00:00:04]} Ba7 {[%clk 00:15:31]} {[%emt 00:00:02]} 8. e5 {[%clk
00:14:56]} {[%emt 00:00:34]} Nd5 {[%clk 00:15:34]} {[%emt 00:00:02]} 9. Qg4
{[%clk 00:14:57]} {[%emt 00:00:04]} Ne7 {[%clk 00:15:08]} {[%emt 00:00:32]} 10.
Qxg7 {[%clk 00:14:21]} {[%emt 00:00:41]} Rg8 {[%clk 00:15:11]} {[%emt
00:00:02]} 11. Qxh7 {[%clk 00:14:16]} {[%emt 00:00:09]} Nbc6 {[%emt 00:00:18]}
12. Bf4 {[%clk 00:13:45]} {[%emt 00:00:35]} b5 {[%clk 00:14:48]} {[%emt
00:00:17]} 13. Nc3 {[%clk 00:13:45]} {[%emt 00:00:05]} Bb7 {[%clk 00:14:51]}
{[%emt 00:00:01]} 14. Ne4 {[%clk 00:13:45]} {[%emt 00:00:04]} Qc7 {[%clk
00:14:18]} {[%emt 00:00:40]} 15. Nf6+ {[%clk 00:13:40]} {[%emt 00:00:10]} Kd8
{[%clk 00:14:16]} {[%emt 00:00:06]} 16. Nxg8 {[%clk 00:13:41]} {[%emt
00:00:05]} Nxg8 {[%clk 00:14:15]} {[%emt 00:00:05]} 17. Qxg8+ {[%clk 00:13:40]}
{[%emt 00:00:06]} Ke7 {[%clk 00:14:19]} {[%emt 00:00:01]} 18. Bg5+ {[%clk
00:13:41]} {[%emt 00:00:04]} f6 {[%clk 00:14:23]} {[%emt 00:00:02]} 19. Bxf6#
{[%clk 00:13:44]} {[%emt 00:00:02]} 1-0

[Event "Open NK Rapid 2025 bord 26-50"]
[Site "Helmond, Netherlands"]
[Date "2025.05.03"]
[Round "3.2"]
[White "Khatniuk, Anastasiia"]
[Black "Geboers, Jimmy"]
[Result "1-0"]
[TimeControl "15 min +5 sec increment"]
[WhiteFideId "14179105"]
[BlackFideId "262919"]
[WhiteElo "1822"]
[BlackElo "2065"]

1. e4 {[%clk 00:15:08]} {[%emt 00:00:01]} e6 {[%clk 00:15:09]} {[%emt
00:00:02]} 2. d4 {[%clk 00:15:11]} {[%emt 00:00:02]} d5 {[%clk 00:15:11]}
{[%emt 00:00:02]} 3. Nd2 {[%clk 00:15:14]} {[%emt 00:00:02]} Nf6 {[%clk
00:15:15]} {[%emt 00:00:02]} 4. e5 {[%clk 00:15:17]} {[%emt 00:00:02]} Nfd7
{[%clk 00:15:18]} {[%emt 00:00:01]} 5. Ngf3 {[%clk 00:15:05]} {[%emt 00:00:18]}
c5 {[%clk 00:15:20]} {[%emt 00:00:02]} 6. c3 {[%clk 00:15:06]} {[%emt
00:00:05]} Nc6 {[%clk 00:15:19]} {[%emt 00:00:05]} 7. Bd3 {[%clk 00:14:57]}
{[%emt 00:00:14]} cxd4 {[%clk 00:15:20]} {[%emt 00:00:04]} 8. cxd4 {[%clk
00:14:57]} {[%emt 00:00:06]} Nxd4 {[%clk 00:15:16]} {[%emt 00:00:08]} 9. Nxd4
{[%clk 00:14:56]} {[%emt 00:00:06]} Nxe5 {[%clk 00:15:18]} {[%emt 00:00:03]} 10.
Bb5+ {[%clk 00:14:40]} {[%emt 00:00:21]} Bd7 {[%clk 00:15:12]} {[%emt
00:00:11]} 11. Bxd7+ {[%clk 00:14:35]} {[%emt 00:00:11]} Qxd7 {[%clk 00:15:14]}
{[%emt 00:00:02]} 12. O-O {[%clk 00:14:35]} {[%emt 00:00:05]} Bd6 {[%clk
00:15:01]} {[%emt 00:00:18]} 13. N2f3 {[%clk 00:14:32]} {[%emt 00:00:08]} Ng4
{[%clk 00:14:51]} {[%emt 00:00:16]} 14. Re1 {[%clk 00:14:02]} {[%emt 00:00:35]}
O-O {[%clk 00:13:33]} {[%emt 00:01:22]} 15. h3 {[%clk 00:14:01]} {[%emt
00:00:07]} Nf6 {[%clk 00:13:33]} {[%emt 00:00:04]} 16. b3 {[%clk 00:13:10]}
{[%emt 00:00:57]} Ne4 {[%clk 00:13:19]} {[%emt 00:00:18]} 17. Bb2 {[%clk
00:12:56]} {[%emt 00:00:20]} f6 {[%clk 00:11:58]} {[%emt 00:01:26]} 18. a4
{[%clk 00:12:51]} {[%emt 00:00:10]} e5 {[%clk 00:11:45]} {[%emt 00:00:16]} 19.
Nb5 {[%clk 00:12:44]} {[%emt 00:00:13]} Rfd8 {[%clk 00:11:26]} {[%emt
00:00:23]} 20. Qxd5+ {[%clk 00:12:35]} {[%emt 00:00:15]} Qf7 {[%clk 00:11:24]}
{[%emt 00:00:07]} 21. Qxe4 {[%clk 00:12:34]} {[%emt 00:00:07]} Qxb3 {[%clk
00:11:25]} {[%emt 00:00:04]} 22. Rab1 {[%clk 00:11:46]} {[%emt 00:00:52]} Qf7
{[%clk 00:10:33]} {[%emt 00:00:57]} 23. Nxd6 {[%clk 00:11:22]} {[%emt
00:00:29]} Rxd6 {[%clk 00:10:35]} {[%emt 00:00:03]} 24. Ba3 {[%clk 00:11:25]}
{[%emt 00:00:02]} Rd7 {[%clk 00:10:35]} {[%emt 00:00:05]} 25. Red1 {[%clk
00:11:03]} {[%emt 00:00:28]} Rad8 {[%clk 00:10:26]} {[%emt 00:00:13]} 26. Rxd7
{[%clk 00:11:04]} {[%emt 00:00:04]} Rxd7 {[%clk 00:10:28]} {[%emt 00:00:02]} 27.
Qc2 {[%clk 00:10:25]} {[%emt 00:00:44]} g6 {[%clk 00:09:35]} {[%emt 00:00:59]}
28. Qb3 {[%clk 00:10:03]} {[%emt 00:00:28]} Kg7 {[%clk 00:09:34]} {[%emt
00:00:05]} 29. Qxf7+ {[%clk 00:10:04]} {[%emt 00:00:04]} Kxf7 {[%clk 00:09:35]}
{[%emt 00:00:04]} 30. Kf1 {[%clk 00:09:48]} {[%emt 00:00:21]} b6 {[%clk
00:09:32]} {[%emt 00:00:09]} 31. Ke2 {[%clk 00:09:49]} {[%emt 00:00:03]} Rc7
{[%clk 00:09:31]} {[%emt 00:00:07]} 32. Nd2 {[%clk 00:09:37]} {[%emt 00:00:17]}
Ke6 {[%clk 00:09:10]} {[%emt 00:00:25]} 33. Rc1 {[%clk 00:09:31]} {[%emt
00:00:12]} Rd7 {[%clk 00:09:11]} {[%emt 00:00:04]} 34. Rc6+ {[%clk 00:09:27]}
{[%emt 00:00:09]} Kf7 {[%clk 00:09:04]} {[%emt 00:00:12]} 35. Ne4 {[%clk
00:09:09]} {[%emt 00:00:22]} f5 {[%clk 00:08:22]} {[%emt 00:00:48]} 36. Ng5+
{[%clk 00:08:53]} {[%emt 00:00:20]} Kg7 {[%clk 00:08:20]} {[%emt 00:00:06]} 37.
Rc7 {[%clk 00:08:42]} {[%emt 00:00:17]} 1-0

[Event "Open NK Rapid 2025 bord 26-50"]
[Site "Helmond, Netherlands"]
[Date "2025.05.03"]
[Round "3.3"]
[White "Kakrana, Reyansh"]
[Black "Roebers, Jan"]
[Result "0-1"]
[TimeControl "15 min +5 sec increment"]
[WhiteFideId "1094092"]
[BlackFideId "1007815"]
[WhiteElo "1796"]
[BlackElo "2058"]

1. e4 {[%clk 00:15:08]} {[%emt 00:00:02]} e5 {[%clk 00:15:09]} {[%emt
00:00:02]} 2. Nf3 {[%clk 00:15:11]} Nc6 {[%clk 00:15:12]} {[%emt 00:00:02]} 3.
Bb5 {[%clk 00:15:15]} {[%emt 00:00:01]} a6 {[%clk 00:15:16]} {[%emt 00:00:02]}
4. Ba4 {[%clk 00:15:17]} {[%emt 00:00:03]} Nf6 {[%clk 00:15:19]} {[%emt
00:00:02]} 5. d3 {[%clk 00:15:16]} {[%emt 00:00:07]} b5 {[%clk 00:15:07]}
{[%emt 00:00:16]} 6. Bb3 {[%clk 00:15:20]} {[%emt 00:00:01]} Be7 {[%clk
00:15:11]} {[%emt 00:00:02]} 7. c3 {[%clk 00:15:12]} {[%emt 00:00:12]} O-O
{[%clk 00:15:08]} {[%emt 00:00:07]} 8. O-O {[%clk 00:15:03]} {[%emt 00:00:14]}
d5 {[%clk 00:14:45]} {[%emt 00:00:28]} 9. exd5 {[%clk 00:11:41]} {[%emt
00:03:28]} Nxd5 {[%clk 00:14:46]} {[%emt 00:00:04]} 10. Re1 {[%clk 00:11:42]}
{[%emt 00:00:04]} Bb7 {[%clk 00:14:37]} {[%emt 00:00:13]} 11. Nxe5 {[%clk
00:10:48]} {[%emt 00:01:00]} Nxe5 {[%clk 00:14:40]} {[%emt 00:00:02]} 12. Rxe5
{[%clk 00:10:51]} {[%emt 00:00:02]} Bf6 {[%clk 00:14:14]} {[%emt 00:00:30]} 13.
Re2 {[%clk 00:09:14]} {[%emt 00:01:43]} Qd6 {[%clk 00:14:00]} {[%emt 00:00:19]}
14. Be3 {[%clk 00:08:17]} {[%emt 00:01:02]} Nf4 {[%clk 00:13:30]} {[%emt
00:00:34]} 15. Bxf4 {[%clk 00:06:27]} {[%emt 00:01:55]} Qxf4 {[%clk 00:13:33]}
{[%emt 00:00:03]} 16. Nd2 {[%clk 00:04:33]} {[%emt 00:01:59]} Be5 {[%clk
00:10:29]} {[%emt 00:03:09]} 17. g3 {[%clk 00:04:11]} {[%emt 00:00:27]} Qf6
{[%clk 00:09:59]} {[%emt 00:00:32]} 18. d4 {[%clk 00:03:38]} {[%emt 00:00:41]}
Bd6 {[%clk 00:09:12]} {[%emt 00:00:51]} 19. Bc2 {[%clk 00:03:29]} {[%emt
00:00:15]} Qh6 {[%clk 00:08:31]} {[%emt 00:00:46]} 20. Be4 {[%clk 00:03:06]}
{[%emt 00:00:28]} Bxe4 {[%clk 00:07:52]} {[%emt 00:00:43]} 21. Nxe4 {[%clk
00:03:09]} {[%emt 00:00:02]} f5 {[%clk 00:07:36]} {[%emt 00:00:22]} 22. Nxd6
{[%clk 00:02:53]} {[%emt 00:00:21]} Qxd6 {[%clk 00:07:39]} {[%emt 00:00:02]} 23.
Qb3+ {[%clk 00:02:31]} {[%emt 00:00:28]} Kh8 {[%clk 00:07:42]} {[%emt
00:00:02]} 24. Re6 {[%clk 00:02:31]} {[%emt 00:00:04]} Qd7 {[%clk 00:07:24]}
{[%emt 00:00:24]} 25. f4 {[%clk 00:02:21]} {[%emt 00:00:15]} b4 {[%clk
00:06:40]} {[%emt 00:00:49]} 26. Rae1 {[%clk 00:02:13]} {[%emt 00:00:13]} bxc3
{[%clk 00:06:43]} {[%emt 00:00:02]} 27. bxc3 {[%clk 00:01:48]} {[%emt
00:00:29]} Rab8 {[%clk 00:06:42]} {[%emt 00:00:07]} 28. Qc4 {[%clk 00:01:44]}
{[%emt 00:00:08]} Qb5 {[%clk 00:04:52]} {[%emt 00:01:55]} 29. Qxb5 {[%clk
00:01:20]} {[%emt 00:00:30]} axb5 {[%clk 00:04:55]} {[%emt 00:00:02]} 30. Re7
{[%clk 00:01:16]} {[%emt 00:00:08]} b4 {[%clk 00:04:56]} {[%emt 00:00:04]} 31.
cxb4 {[%clk 00:00:57]} {[%emt 00:00:24]} Rxb4 {[%clk 00:04:59]} {[%emt
00:00:02]} 32. Rxc7 {[%clk 00:01:01]} {[%emt 00:00:01]} Rxd4 {[%clk 00:04:58]}
{[%emt 00:00:06]} 33. Ree7 {[%clk 00:01:00]} {[%emt 00:00:07]} Rg8 {[%clk
00:04:40]} {[%emt 00:00:22]} 34. Ra7 {[%clk 00:00:55]} {[%emt 00:00:10]} Rd2
{[%clk 00:04:34]} {[%emt 00:00:11]} 35. Kf1 {[%clk 00:00:24]} {[%emt 00:00:36]}
Rxh2 {[%clk 00:04:09]} {[%emt 00:00:30]} 36. Re2 {[%clk 00:00:28]} {[%emt
00:00:01]} Rxe2 {[%clk 00:04:01]} {[%emt 00:00:13]} 37. Kxe2 {[%clk 00:00:32]}
{[%emt 00:00:01]} h5 {[%clk 00:04:03]} {[%emt 00:00:04]} 38. Kf2 {[%clk
00:00:14]} {[%emt 00:00:22]} Kh7 {[%clk 00:04:03]} {[%emt 00:00:05]} 39. a4
{[%clk 00:00:14]} {[%emt 00:00:05]} Kh6 {[%clk 00:04:01]} {[%emt 00:00:07]} 40.
Kf3 {[%clk 00:00:13]} {[%emt 00:00:06]} Rb8 {[%clk 00:04:00]} {[%emt 00:00:05]}
41. a5 {[%clk 00:00:14]} {[%emt 00:00:05]} Rb3+ {[%clk 00:04:03]} {[%emt
00:00:02]} 42. Kf2 {[%clk 00:00:18]} {[%emt 00:00:01]} h4 {[%clk 00:03:41]}
{[%emt 00:00:28]} 43. gxh4 {[%clk 00:00:09]} {[%emt 00:00:13]} g6 {[%clk
00:03:45]} {[%emt 00:00:01]} 44. a6 {[%clk 00:00:11]} {[%emt 00:00:04]} Ra3
{[%clk 00:03:35]} {[%emt 00:00:14]} 45. Ra8 {[%clk 00:00:11]} {[%emt 00:00:05]}
Kh5 {[%clk 00:03:39]} {[%emt 00:00:01]} 46. a7 {[%clk 00:00:13]} {[%emt
00:00:04]} Kg4 {[%clk 00:03:42]} {[%emt 00:00:01]} 47. h5 {[%clk 00:00:12]}
{[%emt 00:00:06]} Kxf4 {[%clk 00:03:45]} {[%emt 00:00:03]} 48. hxg6 {[%clk
00:00:14]} {[%emt 00:00:02]} Ra2+ {[%clk 00:03:49]} {[%emt 00:00:01]} 49. Ke1
{[%clk 00:00:11]} {[%emt 00:00:08]} Ra1+ {[%clk 00:03:47]} {[%emt 00:00:07]} 50.
Kd2 {[%emt 00:00:30]} 0-1